[Event "WSTCC-65 2024"]
[Site "Krakow"]
[Date "2024.07.06"]
[Round "5.16"]
[White "Beier, Thomas"]
[Black "Andersson, Finn"]
[Result "0-1"]
[ECO "D05"]
[WhiteElo "1538"]
[BlackElo "1824"]
[Annotator "NA RC"]
[PlyCount "87"]
[EventDate "2024.07.01"]
[EventType "team-tourn"]
[EventCountry "POL"]
[SourceTitle "playchess.com"]
[Source "ChessBase"]
[SourceQuality "1"]
[TimeControl "40/5400+30:1800+30"]

1. d4 {[%emt 0:00:05]} e6 {[%emt 0:00:10]} 2. Nf3 {[%emt 0:00:25]} Nf6 {[%emt 0:00:10]} 3. e3 {[%emt 0:00:29]} d5 {[%emt 0:00:07]} 4. Bd3 {[%emt 0:00:07]} c5 {[%emt 0:00:17]} 5. b3 {[%emt 0:00:13]} Nc6 {[%emt 0:00:14]} 6. a3 {[%emt 0:00:26]} a6 {[%emt 0:03:59]} 7. Bb2 {[%emt 0:00:13]} b5 {[%emt 0:01:49]} 8. dxc5 {[%emt 0:03:56]} Bxc5 {[%emt 0:00:17]} 9. Ne5 {[%emt 0:01:14]} Nxe5 {[%emt 0:01:27]} 10. Bxe5 {[%emt 0:00:10]} Bb7 {[%emt 0:00:12]} 11. Qf3 {[%emt 0:05:20]} Be7 {[%emt 0:03:26]} 12. Nd2 {[%emt 0:03:00]} O-O {[%emt 0:05:02]} 13. O-O {[%emt 0:00:43]} Nd7 {[%emt 0:01:41]} 14. Qh3 {[%emt 0:08:01]} g6 {[%emt 0:13:23]} 15. Bf4 {[%emt 0:22:41]} e5 {[%emt 0:03:09]} 16. Bh6 {[%emt 0:01:56]} Re8 {[%emt 0:01:59]} 17. c4 {[%emt 0:04:54]} Nc5 {[%emt 0:03:30]} 18. Bc2 {[%emt 0:03:43]} dxc4 {[%emt 0:04:03]} 19. Rad1 {[%emt 0:03:12]} Qc7 {[%emt 0:03:39]} 20. bxc4 {[%emt 0:02:57]} bxc4 {[%emt 0:00:58]} 21. Nxc4 {[%emt 0:03:14]} Rad8 {[%emt 0:05:23]} 22. f4 {[%emt 0:09:33]} e4 {[%emt 0:14:12]} 23. Rc1 {[%emt 0:03:55]} Nd3 {[%emt 0:06:23]} 24. Ne5 {[%emt 0:08:33]} Nxc1 {[%emt 0:03:29]} 25. Rxc1 {[%emt 0:01:17]} Rd2 {[%emt 0:01:35]} 26. Nxf7 {[%emt 0:01:50]} Bxa3 {[%emt 0:03:04]} 27. Ng5 {[%emt 0:00:38]} Rxc2 {[%emt 0:00:52]} 28. Rxc2 {[%emt 0:00:11]} Qxc2 {[%emt 0:00:40]} 29. Bf8 {[%emt 0:00:53]} Qd1+ {[%emt 0:01:26]} 30. Kf2 {[%emt 0:00:15]} Qd2+ {[%emt 0:00:13]} 31. Kf1 {[%emt 0:00:36]} Qc1+ {[%emt 0:08:52]} 32. Ke2 {[%emt 0:00:56]} h5 {[%emt 0:03:52]} 33. Qd7 {[%emt 0:02:33]} Qb2+ {[%emt 0:03:31]} 34. Ke1 {[%emt 0:01:34]} Qc1+ {[%emt 0:00:58]} 35. Kf2 {[%emt 0:00:26]} Qb2+ {[%emt 0:01:19]} 36. Ke1 {[%emt 0:00:16]} Bb4+ {[%emt 0:00:17]} 37. Bxb4 {[%emt 0:00:25]} Qxb4+ {[%emt 0:00:06]} 38. Kf2 {[%emt 0:00:13]} Qe7 {[%emt 0:00:21]} 39. Qa4 {[%emt 0:01:43]} Qd8 {[%emt 0:02:55]} 40. Qc4+ {[%emt 0:02:12]} Bd5 {[%emt 0:00:27]} 41. Qxa6 {[%emt 0:30:13]} Bf7 {[%emt 0:01:59]} 42. h4 {[%emt 0:00:00]} Qe7 {[%emt 0:01:45]} 43. f5 {[%emt 0:00:00]} Qf8 {[%emt 0:03:57]} 44. fxg6 {[%emt 0:00:00]} 0-1

[Event "WSTCC-65 2024"]
[Site "Krakow"]
[Date "2024.07.06"]
[Round "5.17"]
[White "Meulders, Richard"]
[Black "Chubar, Vladimir"]
[Result "1/2-1/2"]
[ECO "A04"]
[WhiteElo "2154"]
[BlackElo "1836"]
[Annotator "RC"]
[PlyCount "103"]
[EventDate "2024.07.01"]
[EventType "team-tourn"]
[EventCountry "POL"]
[SourceTitle "playchess.com"]
[Source "ChessBase"]
[SourceQuality "1"]
[TimeControl "40/5400+30:1800+30"]

1. Nf3 {[%emt 0:00:00]} e6 {[%emt 0:01:19]} 2. d4 {[%emt 0:00:51]} f5 {[%emt 0:00:24]} 3. Bf4 {[%emt 0:00:24]} Nf6 {[%emt 0:00:40]} 4. h3 {[%emt 0:00:30]} c5 {[%emt 0:01:35]} 5. e3 {[%emt 0:01:34]} Qb6 {[%emt 0:00:36]} 6. Qc1 {[%emt 0:00:13]} cxd4 {[%emt 0:01:01]} 7. exd4 {[%emt 0:00:09]} Nc6 {[%emt 0:02:35]} 8. c3 {[%emt 0:00:13]} Be7 {[%emt 0:02:55]} 9. Nbd2 {[%emt 0:05:29]} d5 {[%emt 0:02:48]} 10. Bh2 {[%emt 0:04:38]} Bd7 {[%emt 0:01:35]} 11. Be2 {[%emt 0:06:37]} Rc8 {[%emt 0:01:51]} 12. Qb1 {[%emt 0:08:03]} O-O {[%emt 0:05:02]} 13. O-O {[%emt 0:00:45]} Ne4 {[%emt 0:01:30]} 14. Nxe4 {[%emt 0:02:04]} fxe4 {[%emt 0:02:40]} 15. Ne5 {[%emt 0:00:22]} Nxe5 {[%emt 0:01:44]} 16. Bxe5 {[%emt 0:00:24]} Bb5 {[%emt 0:02:20]} 17. Qd1 {[%emt 0:02:44]} Bxe2 {[%emt 0:03:27]} 18. Qxe2 {[%emt 0:00:06]} Bd6 {[%emt 0:01:44]} 19. Bxd6 {[%emt 0:01:03]} Qxd6 {[%emt 0:00:06]} 20. f3 {[%emt 0:01:46]} exf3 {[%emt 0:01:04]} 21. Rxf3 {[%emt 0:00:08]} Rxf3 {[%emt 0:00:18]} 22. Qxf3 {[%emt 0:00:07]} Rf8 {[%emt 0:00:08]} 23. Qe3 {[%emt 0:04:52]} Rf6 {[%emt 0:02:11]} 24. Rf1 {[%emt 0:04:05]} Kf7 {[%emt 0:04:01]} 25. Rxf6+ {[%emt 0:00:27]} Kxf6 {[%emt 0:01:21]} 26. Kf2 {[%emt 0:03:22]} h6 {[%emt 0:01:09]} 27. Kf3 {[%emt 0:01:53]} Qa6 {[%emt 0:02:36]} 28. Qe5+ {[%emt 0:02:42]} Kf7 {[%emt 0:01:28]} 29. Qc7+ {[%emt 0:03:26]} Kg6 {[%emt 0:05:04]} 30. Kg3 {[%emt 0:09:04]} Qd3+ {[%emt 0:04:20]} 31. Kh2 {[%emt 0:00:09]} Qa6 {[%emt 0:00:12]} 32. a4 {[%emt 0:03:12]} Qxa4 {[%emt 0:03:02]} 33. Qxb7 {[%emt 0:00:27]} Qc2 {[%emt 0:00:52]} 34. Qe7 {[%emt 0:14:14]} Qe2 {[%emt 0:02:55]} 35. Qxa7 {[%emt 0:04:11]} Qxb2 {[%emt 0:00:16]} 36. Qa6 {[%emt 0:00:23]} Kf6 {[%emt 0:02:03]} 37. Qc8 {[%emt 0:02:54]} Qd2 {[%emt 0:04:48]} 38. Qf8+ {[%emt 0:02:53]} Kg6 {[%emt 0:00:19]} 39. Qe8+ {[%emt 0:00:45]} Kf6 {[%emt 0:01:12]} 40. Qf8+ {[%emt 0:00:10]} Kg6 {[%emt 0:00:12]} 41. Qd6 {[%emt 0:30:09]} Kf7 {[%emt 0:30:54]} 42. Qc7+ {[%emt 0:03:01]} Kg6 {[%emt 0:00:21]} 43. Qe5 {[%emt 0:04:29]} Kf7 {[%emt 0:00:43]} 44. Qh5+ {[%emt 0:01:11]} g6 {[%emt 0:04:27]} 45. Qf3+ {[%emt 0:00:14]} Ke7 {[%emt 0:00:19]} 46. h4 {[%emt 0:02:42]} Qe1 {[%emt 0:01:36]} 47. Qg3 {[%emt 0:02:55]} Qe4 {[%emt 0:01:37]} 48. Qc7+ {[%emt 0:00:00]} Kf6 {[%emt 0:00:00]} 49. Qd8+ {[%emt 0:00:00]} Kf5 {[%emt 0:00:00]} 50. Qf8+ {[%emt 0:00:00]} Kg4 {[%emt 0:00:00]} 51. Qxh6 {[%emt 0:00:00]} Qf5 {[%emt 0:00:00]} 52. Qe3 {[%emt 0:00:00]} 1/2-1/2

[Event "WSTCC-65 2024"]
[Site "Krakow"]
[Date "2024.07.06"]
[Round "5.17"]
[White "Sosnowska, Elzbieta"]
[Black "Idesis, Yaacov"]
[Result "1/2-1/2"]
[ECO "B14"]
[WhiteElo "1810"]
[BlackElo "1879"]
[Annotator "NA RC"]
[PlyCount "54"]
[EventDate "2024.07.01"]
[EventType "team-tourn"]
[EventCountry "POL"]
[SourceTitle "playchess.com"]
[Source "ChessBase"]
[SourceQuality "1"]
[TimeControl "40/5400+30:1800+30"]

1. e4 {[%emt 0:00:08]} c6 {[%emt 0:00:15]} 2. d4 {[%emt 0:00:14]} d5 {[%emt 0:00:07]} 3. exd5 {[%emt 0:00:11]} cxd5 {[%emt 0:00:00]} 4. c4 {[%emt 0:00:14]} e6 {[%emt 0:00:27]} 5. Nc3 {[%emt 0:01:00]} Nf6 {[%emt 0:00:11]} 6. Nf3 {[%emt 0:00:26]} Nc6 {[%emt 0:00:32]} 7. a3 {[%emt 0:05:59]} Be7 {[%emt 0:01:40]} 8. Bd3 {[%emt 0:00:13]} dxc4 {[%emt 0:00:28]} 9. Bxc4 {[%emt 0:00:02]} a6 {[%emt 0:00:21]} 10. O-O {[%emt 0:00:37]} b5 {[%emt 0:02:52]} 11. Bb3 {[%emt 0:04:16]} Na5 {[%emt 0:01:14]} 12. Bc2 {[%emt 0:00:13]} Bb7 {[%emt 0:00:23]} 13. Ne5 {[%emt 0:03:45]} Rc8 {[%emt 0:01:40]} 14. Re1 {[%emt 0:00:36]} O-O {[%emt 0:00:57]} 15. Qd3 {[%emt 0:06:05]} Nc6 {[%emt 0:04:48]} 16. Nxc6 {[%emt 0:05:57]} Bxc6 {[%emt 0:01:10]} 17. Bg5 {[%emt 0:00:24]} g6 {[%emt 0:00:32]} 18. Bh6 {[%emt 0:00:33]} Re8 {[%emt 0:00:34]} 19. Rad1 {[%emt 0:00:37]} Qc7 {[%emt 0:03:57]} 20. h3 {[%emt 0:14:26]} Red8 {[%emt 0:01:00]} 21. Qe2 {[%emt 0:01:49]} Qb7 {[%emt 0:03:06]} 22. f3 {[%emt 0:10:41]} Rd7 {[%emt 0:05:40]} 23. Ne4 {[%emt 0:03:05]} Rcd8 {[%emt 0:04:03]} 24. Nc5 {[%emt 0:01:53]} Bxc5 {[%emt 0:00:41]} 25. dxc5 {[%emt 0:00:01]} Rxd1 {[%emt 0:01:05]} 26. Rxd1 {[%emt 0:00:00]} Rxd1+ {[%emt 0:00:20]} 27. Qxd1 {[%emt 0:00:17]} Qd7 {[%emt 0:00:39]} 1/2-1/2

[Event "WSTCC-65 2024"]
[Site "Krakow"]
[Date "2024.07.06"]
[Round "5.18"]
[White "Dovzhenko, Viktor"]
[Black "Rooze, Jan"]
[Result "1/2-1/2"]
[ECO "A36"]
[WhiteElo "2044"]
[BlackElo "2222"]
[Annotator "ChessBase"]
[PlyCount "251"]
[EventDate "2024.07.01"]
[EventType "team-tourn"]
[EventCountry "POL"]
[SourceTitle "playchess.com"]
[Source "ChessBase"]
[SourceQuality "1"]
[TimeControl "40/5400+30:1800+30"]

1. g3 {[%emt 0:02:30]} c5 {[%emt 0:00:08]} 2. c4 {[%emt 0:00:18]} Nc6 {[%emt 0:00:08]} 3. Bg2 {[%emt 0:00:08]} g6 {[%emt 0:00:04]} 4. Nc3 {[%emt 0:00:46]} Bg7 {[%emt 0:00:04]} 5. a3 {[%emt 0:00:43]} e6 {[%emt 0:00:40]} 6. Rb1 {[%emt 0:01:45]} Nge7 {[%emt 0:04:37]} 7. e4 {[%emt 0:08:03]} O-O {[%emt 0:02:36]} 8. Nge2 {[%emt 0:13:27]} d6 {[%emt 0:03:59]} 9. b4 {[%emt 0:01:02]} Rb8 {[%emt 0:13:24]} 10. O-O {[%emt 0:01:48]} b6 {[%emt 0:01:55]} 11. d3 {[%emt 0:05:06]} Bb7 {[%emt 0:01:45]} 12. Bg5 {[%emt 0:08:22]} Qd7 {[%emt 0:11:31]} 13. Qd2 {[%emt 0:02:33]} f5 {[%emt 0:03:52]} 14. Bh6 {[%emt 0:01:33]} Bxh6 {[%emt 0:01:18]} 15. Qxh6 {[%emt 0:00:02]} Ne5 {[%emt 0:00:16]} 16. Rbd1 {[%emt 0:15:53]} Rbe8 {[%emt 0:08:00]} 17. Qg5 {[%emt 0:11:18]} fxe4 {[%emt 0:14:40]} 18. dxe4 {[%emt 0:03:15]} Nf7 {[%emt 0:03:45]} 19. Qe3 {[%emt 0:02:02]} Rc8 {[%emt 0:04:44]} 20. b5 {[%emt 0:02:19]} Ne5 {[%emt 0:01:05]} 21. f4 {[%emt 0:02:10]} Nxc4 {[%emt 0:06:55]} 22. Qd3 {[%emt 0:01:54]} Nb2 {[%emt 0:00:04]} 23. Qxd6 {[%emt 0:00:20]} Qxd6 {[%emt 0:00:05]} 24. Rxd6 {[%emt 0:00:14]} Rcd8 {[%emt 0:00:09]} 25. Rxe6 {[%emt 0:08:47]} Kf7 {[%emt 0:00:53]} 26. f5 {[%emt 0:00:15]} gxf5 {[%emt 0:03:43]} 27. exf5 {[%emt 0:02:05]} Bxg2 {[%emt 0:00:08]} 28. Kxg2 {[%emt 0:00:17]} Nc4 {[%emt 0:00:28]} 29. g4 {[%emt 0:00:56]} Rg8 {[%emt 0:01:12]} 30. h3 {[%emt 0:00:15]} h5 {[%emt 0:01:15]} 31. Rf4 {[%emt 0:00:19]} Nxf5 {[%emt 0:05:51]} 32. Ree4 {[%emt 0:01:35]} Ncd6 {[%emt 0:01:00]} 33. Re5 {[%emt 0:00:28]} hxg4 {[%emt 0:02:08]} 34. hxg4 {[%emt 0:00:59]} Rg5 {[%emt 0:01:43]} 35. Kf2 {[%emt 0:01:21]} Kf6 {[%emt 0:01:37]} 36. Rexf5+ {[%emt 0:00:33]} Rxf5 {[%emt 0:00:27]} 37. gxf5 {[%emt 0:00:27]} Ke5 {[%emt 0:00:34]} 38. f6 {[%emt 0:01:06]} Rf8 {[%emt 0:00:25]} 39. f7 {[%emt 0:01:11]} Rxf7 {[%emt 0:00:22]} 40. Rxf7 {[%emt 0:00:24]} Nxf7 {[%emt 0:00:07]} 41. Ke3 {[%emt 0:30:15]} Nd6 {[%emt 0:30:32]} 42. a4 {[%emt 0:00:49]} Nc4+ {[%emt 0:00:00]} 43. Kd3 {[%emt 0:00:00]} Na5 {[%emt 0:00:00]} 44. Nc1 {[%emt 0:00:00]} Kd6 {[%emt 0:00:00]} 45. Ke4 {[%emt 0:00:00]} Kc7 {[%emt 0:00:00]} 46. Nd3 {[%emt 0:00:00]} Kb7 {[%emt 0:00:00]} 47. Kd5 {[%emt 0:00:00]} a6 {[%emt 0:00:00]} 48. Ne5 {[%emt 0:00:00]} axb5 {[%emt 0:00:00]} 49. axb5 {[%emt 0:00:00]} Nb3 {[%emt 0:00:00]} 50. Nc6 {[%emt 0:00:00]} Kc7 {[%emt 0:00:00]} 51. Ke6 {[%emt 0:00:00]} Nd2 {[%emt 0:00:00]} 52. Ne5 {[%emt 0:00:00]} Nb3 {[%emt 0:00:00]} 53. Nd5+ {[%emt 0:00:00]} Kb7 {[%emt 0:00:00]} 54. Nc6 {[%emt 0:00:00]} Nd2 {[%emt 0:00:00]} 55. Ne5 {[%emt 0:00:00]} Nb3 {[%emt 0:00:00]} 56. Nf3 {[%emt 0:00:00]} Na1 {[%emt 0:00:00]} 57. Ne3 {[%emt 0:00:00]} Nb3 {[%emt 0:00:00]} 58. Kd7 {[%emt 0:00:00]} Nc1 {[%emt 0:01:14]} 59. Nd5 {[%emt 0:01:31]} Ne2 {[%emt 0:02:21]} 60. Kd6 {[%emt 0:00:48]} Nc1 {[%emt 0:04:09]} 61. Ke5 {[%emt 0:02:26]} Nb3 {[%emt 0:02:08]} 62. Ke4 {[%emt 0:00:40]} Na5 {[%emt 0:02:36]} 63. Nd2 {[%emt 0:00:08]} Nc6 {[%emt 0:00:18]} 64. Nb3 {[%emt 0:03:37]} Na7 {[%emt 0:00:14]} 65. Nc3 {[%emt 0:00:14]} Nxb5 {[%emt 0:00:32]} 66. Nxb5 {[%emt 0:00:02]} Kc6 {[%emt 0:00:07]} 67. Nc3 {[%emt 0:00:33]} b5 {[%emt 0:00:07]} 68. Ke5 {[%emt 0:00:45]} b4 {[%emt 0:01:00]} 69. Ne4 {[%emt 0:00:49]} c4 {[%emt 0:00:29]} 70. Nd4+ {[%emt 0:00:25]} Kb6 {[%emt 0:00:10]} 71. Kd5 {[%emt 0:00:13]} b3 {[%emt 0:00:11]} 72. Nc3 {[%emt 0:00:49]} b2 {[%emt 0:00:22]} 73. Kxc4 {[%emt 0:00:10]} Kc7 {[%emt 0:00:14]} 74. Kb3 {[%emt 0:00:15]} Kd6 {[%emt 0:00:10]} 75. Kxb2 {[%emt 0:00:17]} Ke5 {[%emt 0:00:08]} 76. Nde2 {[%emt 0:00:06]} Kf5 {[%emt 0:00:17]} 77. Kc2 {[%emt 0:00:12]} Ke5 {[%emt 0:00:32]} 78. Kd3 {[%emt 0:00:03]} Kf5 {[%emt 0:00:11]} 79. Ke3 {[%emt 0:00:26]} Ke5 {[%emt 0:00:04]} 80. Ng3 {[%emt 0:00:18]} Ke6 {[%emt 0:00:15]} 81. Kd4 {[%emt 0:00:18]} Kd6 {[%emt 0:00:18]} 82. Nf5+ {[%emt 0:00:16]} Ke6 83. Ke4 {[%emt 0:00:18]} Kf6 {[%emt 0:00:32]} 84. Nd5+ {[%emt 0:00:24]} Ke6 85. Nf4+ {[%emt 0:00:20]} Kf6 {[%emt 0:00:16]} 86. Nd6 {[%emt 0:00:45]} Ke7 {[%emt 0:00:20]} 87. Kd5 {[%emt 0:00:24]} Kd7 {[%emt 0:00:05]} 88. Ne6 {[%emt 0:00:20]} Ke7 {[%emt 0:00:05]} 89. Ke5 {[%emt 0:00:50]} Kd7 {[%emt 0:00:04]} 90. Nd4 {[%emt 0:00:29]} Ke7 {[%emt 0:00:09]} 91. N6f5+ {[%emt 0:00:15]} Kd7 {[%emt 0:00:47]} 92. Kd5 {[%emt 0:00:11]} Kc7 {[%emt 0:00:08]} 93. Ne6+ {[%emt 0:00:57]} Kd7 {[%emt 0:00:29]} 94. Ned4 {[%emt 0:00:21]} Kc7 {[%emt 0:00:10]} 95. Kc5 {[%emt 0:00:14]} Kd7 {[%emt 0:00:08]} 96. Kb6 {[%emt 0:00:19]} Ke8 {[%emt 0:00:11]} 97. Kc6 {[%emt 0:00:14]} Kf7 {[%emt 0:00:07]} 98. Kd6 {[%emt 0:00:22]} Kf6 {[%emt 0:00:04]} 99. Ne7 {[%emt 0:00:21]} Kf7 {[%emt 0:00:44]} 100. Ne6 {[%emt 0:00:26]} Kf6 {[%emt 0:00:08]} 101. Nd5+ {[%emt 0:00:26]} Kf5 {[%emt 0:00:14]} 102. Nc3 {[%emt 0:00:46]} Kf6 {[%emt 0:00:17]} 103. Ne4+ {[%emt 0:00:09]} Kf5 {[%emt 0:00:06]} 104. Kd5 {[%emt 0:00:18]} Kg4 {[%emt 0:00:25]} 105. Ke5 {[%emt 0:00:15]} Kf3 {[%emt 0:00:07]} 106. Nf4 {[%emt 0:00:17]} Ke3 {[%emt 0:00:09]} 107. Ng5 {[%emt 0:00:38]} Kf2 {[%emt 0:00:34]} 108. Ke4 {[%emt 0:01:13]} Kg3 {[%emt 0:00:10]} 109. Kf5 {[%emt 0:00:40]} Kf2 {[%emt 0:00:10]} 110. Ne4+ {[%emt 0:00:37]} Ke3 {[%emt 0:00:22]} 111. Ke5 {[%emt 0:00:21]} Kf3 {[%emt 0:00:05]} 112. Nd5 {[%emt 0:00:36]} Ke2 {[%emt 0:00:14]} 113. Nc5 {[%emt 0:00:41]} Kf3 {[%emt 0:00:30]} 114. Kf5 {[%emt 0:00:10]} Ke2 {[%emt 0:00:18]} 115. Ke4 {[%emt 0:00:08]} Kd2 {[%emt 0:00:05]} 116. Kf3 {[%emt 0:00:30]} Ke1 {[%emt 0:00:33]} 117. Ke3 {[%emt 0:00:46]} Kd1 {[%emt 0:00:09]} 118. Nb4 {[%emt 0:00:47]} Ke1 {[%emt 0:00:50]} 119. Nc2+ {[%emt 0:01:31]} Kd1 {[%emt 0:00:31]} 120. Kd3 {[%emt 0:00:26]} Kc1 {[%emt 0:00:05]} 121. Nb3+ {[%emt 0:02:30]} Kb2 {[%emt 0:00:07]} 122. Nd2 {[%emt 0:01:22]} Kc1 {[%emt 0:00:21]} 123. Ne3 {[%emt 0:00:59]} Kb2 {[%emt 0:00:05]} 124. Nc2 {[%emt 0:00:28]} Kc1 {[%emt 0:00:25]} 125. Nc4 {[%emt 0:01:51]} Kd1 {[%emt 0:00:26]} 126. N4e3+ {[%emt 0:00:00]} 1/2-1/2

[Event "WSTCC-65 2024"]
[Site "Krakow"]
[Date "2024.07.06"]
[Round "5.18"]
[White "Reem, Meir"]
[Black "Marks, Zofia"]
[Result "0-1"]
[ECO "A05"]
[WhiteElo "1866"]
[BlackElo "1906"]
[Annotator "NA RC"]
[PlyCount "82"]
[EventDate "2024.07.01"]
[EventType "team-tourn"]
[EventCountry "POL"]
[SourceTitle "playchess.com"]
[Source "ChessBase"]
[SourceQuality "1"]
[TimeControl "40/5400+30:1800+30"]

1. Nf3 {[%emt 0:00:04]} Nf6 {[%emt 0:00:49]} 2. d3 {[%emt 0:00:49]} d5 {[%emt 0:02:16]} 3. c3 {[%emt 0:00:17]} c5 {[%emt 0:06:34]} 4. Qa4+ {[%emt 0:04:23]} Bd7 {[%emt 0:03:32]} 5. Qc2 {[%emt 0:00:08]} Nc6 {[%emt 0:00:55]} 6. e4 {[%emt 0:00:30]} e5 {[%emt 0:04:33]} 7. Bg5 {[%emt 0:00:21]} d4 {[%emt 0:02:08]} 8. Be2 {[%emt 0:01:47]} Be7 {[%emt 0:00:41]} 9. Nbd2 {[%emt 0:02:03]} Be6 {[%emt 0:05:24]} 10. c4 {[%emt 0:02:38]} Nd7 {[%emt 0:01:14]} 11. Bxe7 {[%emt 0:02:39]} Qxe7 {[%emt 0:00:17]} 12. a3 {[%emt 0:00:34]} O-O {[%emt 0:00:38]} 13. Nf1 {[%emt 0:00:06]} a5 {[%emt 0:10:09]} 14. Ng3 {[%emt 0:01:23]} g6 {[%emt 0:03:52]} 15. Qd2 {[%emt 0:04:36]} f6 {[%emt 0:02:49]} 16. h4 {[%emt 0:01:05]} h5 {[%emt 0:09:13]} 17. Nh2 {[%emt 0:05:54]} a4 {[%emt 0:03:04]} 18. Bf3 {[%emt 0:01:41]} Na5 {[%emt 0:03:11]} 19. Qe2 {[%emt 0:00:10]} Nb3 {[%emt 0:00:44]} 20. Rd1 {[%emt 0:00:01]} Rab8 {[%emt 0:00:53]} 21. Ngf1 {[%emt 0:02:35]} b5 {[%emt 0:00:57]} 22. cxb5 {[%emt 0:00:46]} Rxb5 {[%emt 0:00:12]} 23. Nd2 {[%emt 0:00:49]} Nxd2 {[%emt 0:00:36]} 24. Rxd2 {[%emt 0:00:37]} Rfb8 {[%emt 0:02:09]} 25. g4 {[%emt 0:00:30]} hxg4 {[%emt 0:05:40]} 26. Nxg4 {[%emt 0:09:59]} Kh7 {[%emt 0:04:11]} 27. h5 {[%emt 0:02:33]} g5 {[%emt 0:00:34]} 28. Kf1 {[%emt 0:03:22]} Qf7 {[%emt 0:04:59]} 29. Kg2 {[%emt 0:08:43]} c4 {[%emt 0:02:53]} 30. Rc1 {[%emt 0:05:09]} cxd3 {[%emt 0:01:26]} 31. Qxd3 {[%emt 0:00:27]} Nc5 {[%emt 0:02:53]} 32. Rxc5 {[%emt 0:03:11]} Rxc5 {[%emt 0:00:22]} 33. Qa6 {[%emt 0:00:06]} Rbc8 {[%emt 0:08:02]} 34. Qxa4 {[%emt 0:02:30]} R8c7 {[%emt 0:00:47]} 35. b4 {[%emt 0:01:09]} Rc1 {[%emt 0:00:49]} 36. Qa5 {[%emt 0:04:42]} Bxg4 {[%emt 0:03:33]} 37. Bxg4 {[%emt 0:00:21]} Kh6 {[%emt 0:00:40]} 38. a4 {[%emt 0:02:23]} Qc4 {[%emt 0:01:48]} 39. Qa8 {[%emt 0:02:01]} Qf1+ {[%emt 0:01:09]} 40. Kg3 {[%emt 0:09:05]} Qg1+ {[%emt 0:00:57]} 41. Kf3 R7c3+ 0-1

[Event "WSTCC-65 2024"]
[Site "Krakow"]
[Date "2024.07.06"]
[Round "5.19"]
[White "Van Herck, Marcel"]
[Black "Karnaukh, Anatolij"]
[Result "1-0"]
[ECO "D50"]
[WhiteElo "1942"]
[BlackElo "1970"]
[Annotator "NA RC"]
[PlyCount "123"]
[EventDate "2024.07.01"]
[EventType "team-tourn"]
[EventCountry "POL"]
[SourceTitle "playchess.com"]
[Source "ChessBase"]
[SourceQuality "1"]
[TimeControl "40/5400+30:1800+30"]

1. d4 {[%emt 0:00:33]} d5 {[%emt 0:00:23]} 2. c4 {[%emt 0:00:28]} e6 {[%emt 0:00:17]} 3. Nc3 {[%emt 0:04:44]} Nf6 {[%emt 0:01:53]} 4. Bg5 {[%emt 0:00:36]} Bb4 {[%emt 0:02:30]} 5. Qb3 {[%emt 0:05:19]} Nc6 {[%emt 0:00:55]} 6. e3 {[%emt 0:01:58]} dxc4 {[%emt 0:09:16]} 7. Bxc4 {[%emt 0:00:27]} O-O {[%emt 0:00:09]} 8. Nf3 {[%emt 0:05:16]} h6 {[%emt 0:07:59]} 9. Bh4 {[%emt 0:01:06]} g5 {[%emt 0:07:56]} 10. Bg3 {[%emt 0:00:06]} Ne4 {[%emt 0:00:06]} 11. Qc2 {[%emt 0:03:36]} Nxg3 {[%emt 0:05:20]} 12. hxg3 {[%emt 0:00:31]} Qf6 {[%emt 0:03:11]} 13. O-O-O {[%emt 0:02:05]} Bxc3 {[%emt 0:00:13]} 14. Qxc3 {[%emt 0:02:14]} Kg7 {[%emt 0:08:45]} 15. e4 {[%emt 0:04:01]} g4 {[%emt 0:03:18]} 16. e5 {[%emt 0:00:24]} Qe7 {[%emt 0:00:36]} 17. Nd2 {[%emt 0:17:46]} Rh8 {[%emt 0:07:19]} 18. Ne4 {[%emt 0:00:38]} b5 {[%emt 0:01:20]} 19. Bb3 {[%emt 0:10:02]} Nb4 {[%emt 0:02:16]} 20. Rh4 {[%emt 0:02:13]} Bb7 {[%emt 0:03:49]} 21. Rxg4+ {[%emt 0:00:44]} Kf8 {[%emt 0:00:07]} 22. Nf6 {[%emt 0:05:03]} Bd5 {[%emt 0:04:10]} 23. Nxd5 {[%emt 0:01:43]} Nxd5 {[%emt 0:00:50]} 24. Bxd5 {[%emt 0:00:05]} exd5 {[%emt 0:00:04]} 25. Qc6 {[%emt 0:01:01]} Rd8 {[%emt 0:01:23]} 26. Rh1 {[%emt 0:03:25]} Qd7 {[%emt 0:02:10]} 27. Qf6 {[%emt 0:09:58]} Qxg4 {[%emt 0:03:51]} 28. Qxh8+ {[%emt 0:01:36]} Ke7 {[%emt 0:00:09]} 29. Qf6+ {[%emt 0:00:05]} Kd7 {[%emt 0:00:21]} 30. Qxf7+ {[%emt 0:00:10]} Kc8 {[%emt 0:00:20]} 31. Qf4 {[%emt 0:00:15]} Qe2 {[%emt 0:00:24]} 32. Qd2 {[%emt 0:00:36]} Qe4 {[%emt 0:09:17]} 33. f3 {[%emt 0:00:12]} Qg6 {[%emt 0:00:40]} 34. g4 {[%emt 0:00:18]} Rh8 {[%emt 0:00:23]} 35. Rh5 {[%emt 0:02:06]} Kb7 {[%emt 0:01:18]} 36. Rf5 {[%emt 0:00:49]} Qc6+ {[%emt 0:04:00]} 37. Qc3 {[%emt 0:01:11]} Qc4 {[%emt 0:02:38]} 38. Qxc4 {[%emt 0:00:07]} dxc4 {[%emt 0:00:10]} 39. Kd2 {[%emt 0:00:43]} Kc6 {[%emt 0:00:10]} 40. Kc3 {[%emt 0:04:41]} Rb8 {[%emt 0:04:29]} 41. a3 {[%emt 0:30:25]} Kd5 {[%emt 0:31:55]} 42. e6+ {[%emt 0:02:46]} Kxe6 {[%emt 0:00:08]} 43. Rh5 {[%emt 0:00:06]} a5 {[%emt 0:04:46]} 44. Rxh6+ {[%emt 0:00:08]} Kd5 {[%emt 0:00:11]} 45. Rh5+ {[%emt 0:00:05]} Ke6 {[%emt 0:00:00]} 46. Re5+ {[%emt 0:00:00]} Kf6 {[%emt 0:00:00]} 47. Rc5 {[%emt 0:00:00]} Rb7 {[%emt 0:00:00]} 48. f4 {[%emt 0:00:00]} Ke6 {[%emt 0:00:00]} 49. g5 {[%emt 0:00:00]} Kf7 {[%emt 0:00:00]} 50. f5 {[%emt 0:00:00]} Kg7 {[%emt 0:00:00]} 51. Rc6 {[%emt 0:00:00]} Kf7 {[%emt 0:00:00]} 52. g4 {[%emt 0:00:00]} Kg7 {[%emt 0:00:00]} 53. d5 {[%emt 0:00:00]} Kf7 {[%emt 0:00:00]} 54. g6+ {[%emt 0:00:00]} Kg7 {[%emt 0:00:00]} 55. g5 {[%emt 0:00:00]} Ra7 {[%emt 0:00:00]} 56. Kd4 {[%emt 0:00:00]} Rb7 {[%emt 0:00:00]} 57. Kc5 {[%emt 0:00:00]} b4 {[%emt 0:00:00]} 58. axb4 {[%emt 0:00:00]} axb4 {[%emt 0:00:00]} 59. Kxc4 {[%emt 0:00:00]} b3 {[%emt 0:00:00]} 60. Kc3 {[%emt 0:00:00]} Kf8 {[%emt 0:00:00]} 61. f6 {[%emt 0:00:00]} Kg8 {[%emt 0:00:00]} 62. d6 {[%emt 0:00:00]} 1-0